bitfinex-derivatives/quotes_BTCF0:USTF0_20250212
["timestamp","ask_amount","ask_price","bid_price","bid_amount"]
[1739322129206,0.76932,96214.0,96212.0,0.5696856]
[1739322129596,0.76932,96214.0,96213.0,0.0312]
[1739322130801,0.89363986,96240.0,96213.0,0.0312]
[1739322131003,0.2078436,96232.0,96214.0,0.2078812]
[1739322131406,0.01508846,96222.0,96214.0,0.2078812]
[1739322132391,0.01508846,96222.0,96214.0,0.2088812]
[1739322133199,0.0627,96236.0,96214.0,0.2088812]
[1739322133506,0.5686368,96235.0,96214.0,0.2088812]
[1739322134109,0.0150255,96224.0,96214.0,0.2088812]
[1739322135811,0.0150255,96224.0,96214.0,0.22418942]
[1739322139308,0.0150255,96224.0,96214.0,0.2088812]
[1739322141519,0.13958536,96224.0,96214.0,0.2088812]
[1739322143215,0.20803411,96216.0,96214.0,0.001]
[1739322143416,0.0962,96215.0,96214.0,0.001]
[1739322145020,0.0962,96215.0,96213.0,0.01593]
[1739322145221,0.2078877,96211.0,96210.0,0.08398]
[1739322145429,0.2078971,96207.0,96196.0,0.00015599]
[1739322145730,0.3608,96199.0,96196.0,0.00015599]
[1739322148323,0.2079158,96198.0,96196.0,0.00015599]
[1739322148629,0.3628,96199.0,96196.0,0.00015599]
[1739322148831,0.0645,96197.0,96196.0,0.00015599]
[1739322152033,0.0655,96197.0,96196.0,0.00015599]
[1739322153736,0.001,96197.0,96196.0,0.00015599]
[1739322168637,0.5686624,96223.0,96215.0,0.2078791]
[1739322168839,0.0303,96221.0,96215.0,0.2078791]
[1739322169242,0.3608,96223.0,96215.0,0.2078791]
[1739322169443,0.01552356,96219.0,96215.0,0.2078791]
[1739322169636,0.3608,96223.0,96215.0,0.2078791]
[1739322170941,0.3608,96223.0,96215.0,0.2088791]
[1739322171536,0.0150553,96221.0,96215.0,0.2088791]
[1739322179757,0.76908,96224.0,96223.0,0.2078618]
[1739322181054,0.76908,96224.0,96223.0,0.2088618]
[1739322181456,0.76908,96224.0,96223.0,0.2504318]
[1739322181961,0.12988297,96946.0,96223.0,0.2504318]
[1739322181962,0.76896,96253.0,96223.0,0.04257]
[1739322182156,0.76896,96253.0,96247.0,0.20781]
[1739322182950,0.37518651,96248.0,96247.0,0.20781]
[1739322183463,0.76896,96253.0,96252.0,0.2077991]
[1739322184655,0.76896,96253.0,96252.0,0.2087991]
[1739322186959,0.76896,96253.0,96252.0,0.2077991]
[1739322187567,0.76896,96253.0,96245.0,0.2078138]
[1739322187970,0.76896,96253.0,96244.0,0.4318]
[1739322188169,0.76896,96253.0,96247.0,0.2078092]
[1739322190366,0.207808,96248.0,96238.0,0.0001559]
[1739322190562,0.3608,96242.0,96238.0,0.0001559]
[1739322190762,0.062,96241.0,96238.0,0.0001559]
[1739322191261,0.2078273,96239.0,96238.0,0.0001559]
[1739322191569,0.2788273,96239.0,96238.0,0.0001559]
[1739322191762,0.2788273,96239.0,96238.0,0.0417159]
[1739322191961,0.071,96239.0,96218.0,0.071]
[1739322192162,0.2078483,96230.0,96213.0,0.2078815]
[1739322192362,0.0329,96229.0,96213.0,0.2078815]
[1739322192568,0.0329,96229.0,96215.0,0.2078788]
[1739322192865,0.0329,96229.0,96210.0,0.12455986]
[1739322193075,0.3608,96231.0,96221.0,0.2078646]
[1739322193268,0.3608,96231.0,96224.0,0.03057]
[1739322194673,0.37530763,96231.0,96224.0,0.03057]
[1739322197774,4.787e-05,96229.0,96224.0,0.03057]
[1739322198275,0.20789757,96229.0,96224.0,0.03057]
[1739322198483,4.787e-05,96229.0,96224.0,0.03057]
[1739322198676,0.2078575,96225.0,96224.0,0.03057]
[1739322199077,0.2078575,96225.0,96218.0,0.0001559]
[1739322200487,0.3608,96223.0,96218.0,0.0001559]
[1739322200678,0.071,96222.0,96218.0,0.0001559]
[1739322201382,0.071,96222.0,96218.0,0.0307259]
[1739322202491,0.3608,96223.0,96218.0,0.0307259]
[1739322202689,0.3608,96223.0,96221.0,0.2078651]
[1739322202993,0.20093939,96228.0,96222.0,0.0319]
[1739322203186,0.20093939,96228.0,96222.0,0.239763]
[1739322203383,0.07637953,96228.0,96225.0,0.2078567]
[1739322203587,0.28039608,96234.0,96228.0,0.207851]
[1739322203795,0.27979607,96234.0,96233.0,0.2078402]
[1739322206091,0.27979607,96234.0,96233.0,0.2088402]
[1739322206792,0.01424718,96241.0,96236.0,0.207833]
[1739322208794,0.12455986,96243.0,96236.0,0.207833]
[1739322209678,0.2077959,96254.0,96235.0,0.3608]
[1739322209679,0.89347986,96260.0,96257.0,0.2077879]
[1739322209883,0.76892,96260.0,96255.0,0.2077909]
[1739322210093,0.78351455,96260.0,96255.0,0.2077909]
[1739322210294,0.78351455,96260.0,96250.0,0.0329]
[1739322210500,0.90807441,96260.0,96258.0,0.2077857]
[1739322210685,0.78351455,96260.0,96258.0,0.2077857]
[1739322212895,0.09570698,96259.0,96258.0,0.2077857]
[1739322214492,0.09570698,96259.0,96256.0,0.03056]
[1739322215993,0.09570698,96259.0,96256.0,0.2383505]
[1739322218295,0.09570698,96259.0,96256.0,0.03056]
[1739322218699,0.2077884,96257.0,96256.0,0.03056]
[1739322220594,0.2077884,96257.0,96244.0,0.2078156]
[1739322220789,0.12455986,96254.0,96244.0,0.2078156]
[1739322223096,0.2077884,96257.0,96245.0,0.2078136]
[1739322225604,0.2077884,96257.0,96243.0,0.3608]
[1739322225605,0.0001559,96259.0,96243.0,0.3608]
[1739322227297,0.0001559,96259.0,96251.0,0.2078]
[1739322228706,0.0001559,96259.0,96254.0,0.2077938]
[1739322229098,0.0001559,96259.0,96256.0,0.207789]
[1739322231107,0.0001559,96259.0,96243.0,0.3608]
[1739322231304,0.0001559,96259.0,96250.0,0.2078035]
[1739322234402,0.0001559,96259.0,96243.0,0.3608]
[1739322234403,0.09586917,96259.0,96243.0,0.3608]
[1739322234596,0.09586917,96259.0,96251.0,0.2078007]
[1739322237000,0.549902,96259.0,96251.0,0.2078007]
[1739322237201,0.549902,96259.0,96244.0,0.2078148]
[1739322237401,0.33235636,96254.0,96244.0,0.2078148]
[1739322239515,0.12455986,96254.0,96243.0,0.3608]
[1739322239807,0.2078074,96249.0,96243.0,0.3608]
[1739322240311,0.2078074,96249.0,96240.0,0.2402239]
[1739322240507,0.55631986,96254.0,96240.0,0.0324]
[1739322240710,0.2078092,96248.0,96240.0,0.0324]
[1739322243813,0.09572179,96253.0,96240.0,0.0324]
[1739322244609,0.2078141,96246.0,96240.0,0.0324]
[1739322247412,0.10947417,96253.0,96240.0,0.0324]
[1739322247714,0.2077995,96252.0,96243.0,0.2078183]
[1739322248013,0.2077995,96252.0,96240.0,0.0324]
[1739322248014,0.10947417,96253.0,96240.0,0.0324]
[1739322248210,0.10947417,96253.0,96244.0,0.2078157]
[1739322249808,0.09572179,96252.0,96244.0,0.2078157]
[1739322251014,0.09572179,96252.0,96240.0,0.0324]
[1739322251217,0.09572179,96252.0,96251.0,0.2078013]
[1739322252916,0.01381913,96254.0,96251.0,0.2078013]
[1739322253124,0.43807111,96259.0,96252.0,0.0321]
[1739322253313,0.43807111,96259.0,96252.0,0.2398984]
[1739322254119,0.45172054,96259.0,96252.0,0.2398984]
[1739322255112,0.45172054,96259.0,96253.0,0.2077957]
[1739322255417,0.45172054,96259.0,96256.0,0.2077899]
[1739322255817,0.35599875,96259.0,96256.0,0.2077899]
[1739322256620,0.35599875,96259.0,96257.0,0.03]
[1739322257120,0.35599875,96259.0,96257.0,0.2377879]
[1739322268624,0.35599875,96259.0,96257.0,0.03]
[1739322269018,0.35599875,96259.0,96252.0,0.207798]
[1739322270521,0.35599875,96259.0,96251.0,0.3608]
[1739322270719,0.10162,96258.0,96251.0,0.3608]
[1739322270918,0.2077912,96256.0,96251.0,0.3608]
[1739322275129,0.2787912,96256.0,96251.0,0.3608]
[1739322276023,0.31147809,96257.0,96251.0,0.3608]
[1739322277633,0.31147809,96257.0,96246.0,0.207811]
[1739322277833,0.12455986,96256.0,96246.0,0.207811]
[1739322278932,0.207794,96255.0,96244.0,0.0325]
[1739322281236,0.207794,96255.0,96244.0,0.240316]
[1739322282537,0.2078027,96251.0,96244.0,0.0325]
[1739322282834,0.12455986,96256.0,96244.0,0.0325]
[1739322283033,0.2078018,96251.0,96244.0,0.0325]
[1739322283220,0.2078048,96250.0,96243.0,0.00056]
[1739322283422,0.03,96249.0,96239.0,0.0001559]
[1739322283627,0.36236606,96249.0,96239.0,0.0001559]
[1739322283938,0.07096,96248.0,96239.0,0.0001559]
[1739322284433,0.2078114,96247.0,96239.0,0.0001559]
[1739322284634,0.2078126,96246.0,96239.0,0.0001559]
[1739322284836,0.2078201,96243.0,96239.0,0.0001559]
[1739322287031,0.2078146,96245.0,96239.0,0.0001559]
[1739322288032,0.10912581,96248.0,96244.0,0.2078164]
[1739322288536,0.10912581,96248.0,96243.0,0.3608]
[1739322288735,0.10912581,96248.0,96245.0,0.2078125]
[1739322289033,0.01340574,96248.0,96245.0,0.2078125]
[1739322289239,0.2077988,96253.0,96245.0,0.2078125]
[1739322289939,0.22130634,96253.0,96245.0,0.2078125]
[1739322291138,0.22130634,96253.0,96243.0,0.3608]
[1739322291334,0.22130634,96253.0,96239.0,0.2079818]
[1739322291637,0.12455986,96249.0,96239.0,0.2079818]
[1739322292028,0.3608,96248.0,96239.0,0.0001559]
[1739322292233,0.207819,96243.0,96239.0,0.0001559]
[1739322292441,0.07096,96243.0,96239.0,0.0001559]
[1739322292741,0.2078251,96240.0,96239.0,0.0001559]
[1739322294945,0.2078251,96240.0,96227.0,0.0624]
[1739322295132,0.12455986,96237.0,96227.0,0.0624]
[1739322295334,0.33238496,96240.0,96227.0,0.0624]
[1739322296443,0.33238496,96240.0,96227.0,0.0654]
[1739322296939,0.2078281,96239.0,96227.0,0.0654]
[1739322297939,0.2078281,96239.0,96228.0,0.0323]
[1739322298432,0.2078281,96239.0,96229.0,0.3608]
[1739322299849,0.01354803,96239.0,96238.0,0.2078294]
[1739322300150,0.19551986,96250.0,96238.0,0.2078294]
[1739322300740,0.19551986,96250.0,96238.0,0.3608]
[1739322300944,0.19551986,96250.0,96243.0,0.2078178]
[1739322301144,0.01379105,96250.0,96244.0,0.0325]
[1739322301347,0.34565986,96260.0,96249.0,0.2078057]
[1739322302246,0.12455986,96260.0,96249.0,0.2078057]
[1739322302447,0.32434108,96257.0,96249.0,0.2078057]
[1739322303158,0.09571923,96255.0,96249.0,0.2078057]
[1739322306055,0.01286299,96257.0,96249.0,0.2078057]
[1739322306353,0.12455986,96260.0,96249.0,0.2078057]
[1739322306757,0.35500682,96258.0,96249.0,0.2078057]
[1739322309958,0.35500682,96258.0,96250.0,0.2078022]
[1739322318163,0.35500682,96258.0,96249.0,0.3608]
[1739322318359,0.207796,96254.0,96249.0,0.3608]
[1739322318561,0.35500682,96258.0,96249.0,0.3608]
[1739322320461,0.56279372,96258.0,96249.0,0.3608]
[1739322321266,0.56279372,96258.0,96245.0,0.0612]
[1739322321462,0.56279372,96258.0,96249.0,0.3608]
[1739322325392,0.09571018,96257.0,96249.0,0.3608]
[1739322327990,0.56279372,96258.0,96249.0,0.3608]
[1739322329080,0.35500682,96258.0,96249.0,0.3608]
[1739322329283,0.2077891,96257.0,96249.0,0.3608]
[1739322330687,0.2077891,96257.0,96245.0,0.0612]
[1739322330982,0.2077891,96257.0,96249.0,0.3608]
[1739322333390,0.2077891,96257.0,96248.0,0.3608]
[1739322334189,0.2077891,96257.0,96245.0,0.0307]
[1739322334393,0.2077891,96257.0,96248.0,0.3608]
[1739322339198,0.2077891,96257.0,96245.0,0.0307]
[1739322339497,0.2077891,96257.0,96248.0,0.3608]
[1739322341200,0.30349977,96257.0,96248.0,0.3608]
[1739322341594,0.30349977,96257.0,96246.0,0.0304]
[1739322341795,0.30349977,96257.0,96248.0,0.3608]
[1739322343904,0.37445977,96257.0,96248.0,0.3608]
[1739322346607,0.37445977,96257.0,96246.0,0.0304]
[1739322346812,0.37445977,96257.0,96248.0,0.3608]
[1739322348006,0.2787491,96257.0,96248.0,0.3608]
[1739322348504,0.07096,96257.0,96248.0,0.3608]
[1739322348708,0.2078056,96249.0,96248.0,0.3608]
[1739322351099,0.43176,96257.0,96243.0,0.0001559]
[1739322351401,0.2078112,96247.0,96243.0,0.0001559]
[1739322351604,0.07096,96246.0,96243.0,0.0001559]
[1739322352506,0.07096,96246.0,96234.0,0.3601359]
[1739322352706,0.2787725,96246.0,96234.0,0.3601359]
[1739322353109,0.16340352,96244.0,96234.0,0.3601359]
[1739322354204,0.16340352,96244.0,96234.0,0.001]
[1739322354406,0.08170176,96244.0,96234.0,0.001]
[1739322354606,0.2078189,96243.0,96234.0,0.001]
[1739322355510,0.2078211,96242.0,96234.0,0.001]
[1739322355711,0.16340352,96244.0,96234.0,0.001]
[1739322355909,0.2078279,96239.0,96234.0,0.001]
[1739322356209,0.2078298,96238.0,96234.0,0.001]
[1739322356603,0.16340352,96244.0,96234.0,0.001]
[1739322356804,0.2078335,96237.0,96234.0,0.001]
[1739322357008,0.2078356,96236.0,96234.0,0.001]
[1739322358607,0.2078406,96233.0,96229.0,0.3931759]
[1739322358906,0.2078406,96233.0,96229.0,0.3926559]
[1739322359407,0.2078458,96231.0,96229.0,0.3609559]
[1739322361210,0.07096,96235.0,96229.0,0.3609559]
[1739322361412,0.09572955,96234.0,96229.0,0.3609559]
[1739322364119,0.08400257,96235.0,96229.0,0.3609559]
[1739322364616,0.2078451,96231.0,96229.0,0.3609559]
[1739322366918,0.08400257,96235.0,96229.0,0.3609559]
[1739322367216,0.29183877,96235.0,96229.0,0.3609559]
[1739322367415,0.09572955,96234.0,96229.0,0.3609559]
[1739322369118,0.2078402,96233.0,96229.0,0.3609559]
[1739322370422,0.2078429,96232.0,96229.0,0.3609559]
[1739322371122,0.09572955,96234.0,96229.0,0.3609559]
[1739322371426,0.2078447,96231.0,96229.0,0.3609559]
[1739322372230,0.07096,96230.0,96229.0,0.3609559]
[1739322372726,0.07096,96230.0,96229.0,0.0001559]
[1739322374531,0.0519622,96229.0,96207.0,0.0312]
[1739322374833,0.2078791,96215.0,96207.0,0.0312]
[1739322375029,0.07096,96214.0,96207.0,0.0312]
[1739322375427,0.07096,96214.0,96203.0,0.0614]
[1739322375626,0.2079021,96205.0,96204.0,0.0001559]
[1739322377526,0.16340352,96213.0,96196.0,0.32488601]
[1739322377527,0.207918,96197.0,96196.0,0.32488601]
[1739322378036,0.07096,96198.0,96196.0,0.32488601]
[1739322379735,0.07096,96197.0,96196.0,0.32488601]
[1739322381237,0.07196,96197.0,96196.0,0.32488601]
[1739322383231,0.07196,96197.0,96195.0,0.0312]
[1739322383232,0.2079284,96193.0,96187.0,0.0006759]
[1739322383432,0.2079284,96193.0,96187.0,0.0001559]
[1739322384136,0.07196,96197.0,96187.0,0.0001559]
[1739322384339,0.07096,96197.0,96191.0,0.00255936]
[1739322385340,0.278879,96197.0,96191.0,0.00255936]
[1739322385635,0.2079224,96195.0,96191.0,0.00255936]
[1739322388337,0.07096,96197.0,96191.0,0.00255936]
[1739322389241,0.2079201,96196.0,96191.0,0.00255936]
[1739322390546,0.2079201,96196.0,96191.0,0.00155936]
[1739322390746,0.2079201,96196.0,96191.0,0.00255936]
[1739322394439,0.2079201,96196.0,96191.0,0.001]
[1739322395142,0.2079231,96195.0,96191.0,0.001]
[1739322395348,0.7692,96194.0,96191.0,0.001]
[1739322395547,0.2079266,96193.0,96191.0,0.001]
[1739322397348,0.3608,96192.0,96191.0,0.001]
[1739322397550,0.3608,96192.0,96187.0,0.0001559]
[1739322397551,0.2079374,96188.0,96187.0,0.0001559]
[1739322397937,0.2079429,96186.0,96179.0,0.0313859]
[1739322398138,0.2789045,96185.0,96179.0,0.0313859]
[1739322401453,0.2079468,96184.0,96179.0,0.0313859]
[1739322401756,0.2079508,96182.0,96179.0,0.0313859]
[1739322401948,0.2079544,96181.0,96179.0,0.0313859]
[1739322402644,0.3608,96183.0,96172.0,0.00010396]
[1739322402959,0.2079699,96173.0,96172.0,0.00010396]
[1739322403150,0.2789299,96173.0,96172.0,0.00010396]
[1739322404247,0.2789299,96173.0,96172.0,0.00210396]
[1739322405157,0.07096,96173.0,96172.0,0.00210396]
[1739322406856,0.12464872,96182.0,96174.0,0.207966]
[1739322407160,0.12464872,96184.0,96181.0,0.3608]
[1739322407459,0.07096,96185.0,96181.0,0.3608]
[1739322407460,0.07096,96185.0,96182.0,0.0638]
[1739322408063,0.07096,96185.0,96174.0,0.3608]
[1739322408253,0.12464872,96184.0,96175.0,0.2079653]
[1739322410662,0.12464872,96184.0,96175.0,0.2099653]
[1739322413359,0.12464872,96184.0,96175.0,0.2052253]
[1739322413557,0.08182823,96185.0,96175.0,0.2052253]
[1739322414664,0.08182823,96185.0,96175.0,0.2032253]
[1739322414865,0.08182823,96185.0,96175.0,0.2052253]
[1739322415064,0.08182823,96185.0,96183.0,0.3608]
[1739322415257,0.09578001,96187.0,96184.0,0.063]
[1739322416270,0.07096,96189.0,96184.0,0.063]
[1739322416564,0.2079432,96186.0,96184.0,0.063]
[1739322417265,0.2079432,96186.0,96184.0,0.0325]
[1739322418868,0.2089432,96186.0,96184.0,0.0325]
[1739322419256,0.51954473,96186.0,96183.0,0.3608]
[1739322419857,0.2079688,96174.0,96166.0,0.3608]
[1739322420061,0.2079688,96174.0,96158.0,0.0318]
[1739322421065,0.2079688,96174.0,96160.0,0.0313]
[1739322421467,0.2079688,96174.0,96172.0,0.00210396]
[1739322423262,0.22066567,96174.0,96172.0,0.00210396]
[1739322423570,0.01269687,96174.0,96172.0,0.00210396]
[1739322423759,0.08182823,96184.0,96172.0,0.00210396]
[1739322423953,0.08182823,96184.0,96180.0,0.3608]
[1739322424160,0.07096,96185.0,96181.0,0.0628]
[1739322424359,0.08336457,96185.0,96181.0,0.0628]
[1739322424658,0.01240457,96185.0,96181.0,0.0628]
[1739322424859,0.31060153,96186.0,96182.0,0.0321]
[1739322426770,0.32261089,96186.0,96182.0,0.0321]
[1739322427259,0.32261089,96186.0,96184.0,0.2079446]
[1739322428462,0.32261089,96186.0,96184.0,0.1946446]
[1739322428863,0.32361089,96186.0,96184.0,0.1946446]
[1739322429367,0.31160153,96186.0,96185.0,0.3608]
[1739322434569,0.001,96186.0,96185.0,0.6608]
[1739322435169,0.0001559,96197.0,96196.0,0.2079201]
[1739322435469,0.0001559,96197.0,96196.0,0.6396801]
[1739322436275,0.0001559,96197.0,96196.0,0.9396801]
[1739322437273,0.0011559,96197.0,96196.0,0.9396801]
[1739322438386,0.0011559,96197.0,96196.0,1.3004801]
[1739322438971,0.0011559,96197.0,96196.0,1.5173801]
[1739322441379,0.0011559,96197.0,96196.0,1.2173801]
[1739322441880,0.0011559,96197.0,96196.0,1.5173801]
[1739322443383,0.0011559,96197.0,96196.0,1.2173801]
[1739322446679,0.0011559,96197.0,96196.0,1.1464201]
[1739322446980,0.0011559,96197.0,96196.0,1.2173801]
[1739322447372,0.0001559,96197.0,96196.0,1.2173801]
[1739322454885,0.0001559,96197.0,96196.0,0.4957801]
[1739322455080,0.0001559,96197.0,96196.0,0.8565801]
[1739322456684,0.19841455,96210.0,96196.0,0.64866]
[1739322456886,0.19841455,96210.0,96208.0,0.2078937]
[1739322458488,0.76980001,96211.0,96204.0,0.3608]
[1739322458788,0.78143464,96211.0,96210.0,0.2078898]
[1739322460180,0.78143464,96211.0,96204.0,0.3608]
[1739322460181,0.78543464,96211.0,96204.0,0.3608]
[1739322460387,0.2079081,96202.0,96199.0,0.0001559]
[1739322460580,0.3008105,96201.0,96199.0,0.0001559]
[1739322461286,0.2079151,96199.0,96195.0,0.3608]
[1739322461989,0.2079151,96199.0,96189.0,0.2079342]
[1739322462387,0.2079151,96199.0,96190.0,0.2079327]
[1739322462582,0.0929,96201.0,96192.0,0.2079277]
[1739322463194,0.3018108,96201.0,96192.0,0.2079277]
[1739322463788,0.2079128,96200.0,96192.0,0.2079277]
[1739322464691,0.2079151,96199.0,96192.0,0.2079277]
[1739322465393,0.2079167,96198.0,96192.0,0.2079277]
[1739322465793,0.2079183,96197.0,96192.0,0.2079277]
[1739322466798,0.2079208,96196.0,96192.0,0.2079277]
[1739322468197,0.2109208,96196.0,96192.0,0.2079277]
[1739322469297,0.2109208,96196.0,96186.0,0.5687404]
[1739322469498,0.2079231,96195.0,96186.0,0.5687404]
[1739322469698,0.2079231,96195.0,96186.0,0.3608]
[1739322469898,0.2079258,96194.0,96187.0,0.2079393]
[1739322470697,0.1049481,96201.0,96187.0,0.2079393]
[1739322470890,0.2079269,96193.0,96187.0,0.2079393]
[1739322471092,0.207929,96192.0,96187.0,0.2079393]
[1739322471502,0.001,96195.0,96187.0,0.2079393]
[1739322471803,0.2079394,96188.0,96186.0,0.3608]
[1739322473800,0.1710394,96188.0,96186.0,0.3608]
[1739322474203,0.1720394,96188.0,96186.0,0.3608]
[1739322474503,0.18413803,96188.0,96186.0,0.3608]
[1739322475204,0.01309863,96188.0,96186.0,0.3608]
[1739322478401,0.01309863,96188.0,96186.0,0.5687404]
[1739322490123,0.01309863,96188.0,96187.0,0.0327]
[1739322491222,0.01209863,96188.0,96187.0,0.0327]
[1739322491423,0.002,96188.0,96187.0,0.0327]
[1739322493823,0.002,96188.0,96186.0,0.5693404]
[1739322494122,0.01529658,96192.0,96186.0,0.5687404]
[1739322494325,0.2079255,96194.0,96186.0,0.5687404]
[1739322494523,0.0329,96198.0,96186.0,0.5687404]
[1739322494724,0.001,96188.0,96186.0,0.5687404]
[1739322495228,0.2079268,96193.0,96186.0,0.5687404]
[1739322495428,0.001,96192.0,96187.0,0.2079384]
[1739322495825,0.001,96192.0,96188.0,0.2079356]
[1739322496023,0.001,96192.0,96189.0,0.2079346]
[1739322496230,0.001,96192.0,96190.0,0.2079318]
[1739322496831,0.25560665,96198.0,96190.0,0.2079318]
[1739322497531,0.002,96192.0,96190.0,0.2079318]
[1739322498127,0.01678975,96198.0,96197.0,0.207918]
[1739322498629,0.01478975,96198.0,96197.0,0.207918]
[1739322498828,0.0001559,96200.0,96194.0,0.3608]
[1739322499029,0.0001559,96200.0,96198.0,0.2079143]
[1739322499631,0.01491461,96200.0,96198.0,0.2079143]
[1739322499823,0.0001559,96200.0,96198.0,0.2079143]
[1739322501430,0.0031559,96200.0,96198.0,0.2079143]
[1739322501828,0.0031559,96200.0,96194.0,0.3608]
[1739322502031,0.0041559,96200.0,96195.0,0.207921]
[1739322502227,0.0041559,96200.0,96196.0,0.2079192]
[1739322502431,0.0001559,96200.0,96196.0,0.2079192]
[1739322502736,0.0031559,96200.0,96196.0,0.2079192]
[1739322502926,0.01842141,96200.0,96196.0,0.2079192]
[1739322503126,0.01842141,96200.0,96197.0,0.2079176]
[1739322503735,0.01842141,96200.0,96198.0,0.2079156]
[1739322504124,0.01742141,96200.0,96198.0,0.2079156]
[1739322504324,0.01742141,96200.0,96198.0,0.5687156]
[1739322504823,0.01842141,96200.0,96198.0,0.5687156]
[1739322505219,0.01542141,96200.0,96198.0,0.5687156]
[1739322505420,0.01842141,96200.0,96198.0,0.5687156]
[1739322507529,0.01742141,96200.0,96198.0,0.5687156]
[1739322507734,0.01742141,96200.0,96186.0,0.3608]
[1739322508029,0.34997332,96200.0,96186.0,0.3608]
[1739322508235,0.34997332,96200.0,96192.0,0.2079287]
[1739322508431,0.14006042,96200.0,96186.0,0.3608]
[1739322508737,0.2079229,96195.0,96190.0,0.2079324]
[1739322509535,0.2079161,96198.0,96191.0,0.2079288]
[1739322509724,0.2079161,96198.0,96192.0,0.2079288]
[1739322509929,0.2079187,96197.0,96192.0,0.2079288]
[1739322510535,0.2079224,96195.0,96192.0,0.2079288]
[1739322510937,0.2089224,96195.0,96192.0,0.2079288]
[1739322511339,0.14006042,96200.0,96194.0,0.5687245]
[1739322511642,0.001,96197.0,96194.0,0.5687245]
[1739322512035,0.001,96195.0,96194.0,0.5687245]
[1739322513540,0.2079162,96198.0,96194.0,0.5687245]
[1739322513741,0.01542141,96200.0,96194.0,0.3608]
[1739322513742,0.01742141,96200.0,96194.0,0.3608]
[1739322513944,0.01742141,96200.0,96197.0,0.207918]
[1739322514131,0.01542141,96200.0,96197.0,0.207918]
[1739322514744,0.01742141,96200.0,96197.0,0.207918]
[1739322515241,0.01542141,96200.0,96197.0,0.207918]
[1739322515443,0.01842141,96200.0,96197.0,0.207918]
[1739322516036,0.01842141,96200.0,96199.0,0.2079137]
[1739322517137,0.0031559,96200.0,96199.0,0.2079137]
[1739322517337,0.0001559,96200.0,96199.0,0.2079137]
[1739322517532,0.0021559,96200.0,96199.0,0.2079137]
[1739322517942,0.0001559,96200.0,96199.0,0.2079137]
[1739322518243,0.0011559,96200.0,96199.0,0.2079137]
[1739322520644,0.0001559,96200.0,96199.0,0.2109137]
[1739322521234,0.0001559,96200.0,96199.0,0.2099137]
[1739322522135,0.0001559,96200.0,96199.0,0.4268137]
[1739322524738,0.0001559,96200.0,96199.0,0.4278137]
[1739322525440,0.0001559,96200.0,96199.0,0.4248137]
[1739322525646,0.0001559,96200.0,96199.0,0.4268137]
[1739322527651,1e-07,96200.0,96199.0,0.4268137]
[1739322544363,1e-07,96200.0,96199.0,1.1484137]
[1739322546273,1e-07,96200.0,96199.0,0.7876137]
[1739322547472,1e-07,96200.0,96199.0,0.5707137]
[1739322549371,1e-07,96200.0,96199.0,0.6415537]
[1739322549967,1e-07,96200.0,96199.0,0.5707137]
[1739322550171,1e-07,96200.0,96199.0,0.6415537]
[1739322551579,0.01442995,96200.0,96199.0,0.6415537]
[1739322551967,0.01442995,96200.0,96199.0,0.5707137]
[1739322553277,1e-07,96200.0,96199.0,0.5707137]
[1739322563789,1e-07,96200.0,96199.0,0.7876137]
[1739322571996,1e-07,96200.0,96199.0,0.8584137]
[1739322573998,1e-07,96200.0,96199.0,0.8634137]
[1739322588916,1e-07,96200.0,96199.0,0.7926137]
[1739322589110,1e-07,96200.0,96199.0,0.8634137]
[1739322590311,1e-07,96200.0,96199.0,0.7926137]
[1739322595424,1e-07,96200.0,96199.0,0.5757137]
[1739322597024,0.07415642,96208.0,96199.0,0.3678]
[1739322597219,0.13889558,96210.0,96199.0,0.3678]
[1739322597615,0.2078948,96208.0,96207.0,0.2078961]
[1739322599218,0.2079035,96204.0,96201.0,0.2079086]
[1739322599422,0.0308,96203.0,96201.0,0.2079086]
[1739322599616,0.238706,96203.0,96201.0,0.2079086]
[1739322599816,0.2079114,96201.0,96199.0,0.3634]
[1739322600017,0.2079114,96201.0,96199.0,0.3628]
[1739322600219,0.0501,96200.0,96199.0,0.3628]
[1739322600417,0.0501,96200.0,96199.0,0.3608]
[1739322601124,0.0501,96200.0,96199.0,0.3628]
[1739322601321,0.0501,96200.0,96199.0,0.5707133]
[1739322602019,0.0501,96200.0,96199.0,0.5757133]
[1739322602819,0.0501,96200.0,96199.0,0.3678]
[1739322604131,0.3501,96200.0,96199.0,0.007]
[1739322604529,0.72468395,96200.0,96161.0,0.01552585]
[1739322604727,0.72468395,96200.0,96153.0,0.18572982]
[1739322604728,0.7216,96162.0,96153.0,0.18572982]
[1739322604939,0.3608,96154.0,96153.0,0.18572982]
[1739322605837,0.3608,96154.0,96153.0,0.39374302]
[1739322607244,0.3618,96154.0,96153.0,0.39374302]
[1739322607537,0.001,96154.0,96153.0,0.39374302]
[1739322607739,0.003,96154.0,96153.0,0.39374302]
[1739322607946,0.3638,96154.0,96153.0,0.18572982]
[1739322608150,0.3638,96154.0,96147.0,0.45666801]
[1739322608151,0.3638,96154.0,96147.0,0.00052]
[1739322608331,0.3638,96154.0,96151.0,0.2080174]
[1739322608527,0.3618,96154.0,96153.0,0.001]
[1739322609442,0.3608,96154.0,96144.0,0.00015599]
[1739322609742,0.3608,96145.0,96144.0,0.00015599]
[1739322610146,0.3931,96145.0,96139.0,0.00156022]
[1739322610638,0.2080412,96140.0,96139.0,0.00156022]
[1739322611540,0.2080412,96140.0,96139.0,0.00656022]
[1739322611739,0.2080412,96140.0,96139.0,0.00956022]
[1739322612042,0.2080412,96140.0,96139.0,0.008]
[1739322612238,0.2080412,96140.0,96139.0,0.005]
[1739322612440,0.2080412,96140.0,96139.0,0.008]
[1739322612842,0.3608,96142.0,96139.0,0.008]
[1739322613348,0.3608,96142.0,96140.0,0.031]
[1739322613737,0.3608,96142.0,96140.0,0.23904]
[1739322614839,0.3608,96142.0,96141.0,0.032]
[1739322615947,0.3608,96142.0,96141.0,0.002]
[1739322616542,0.3938,96142.0,96141.0,0.002]
[1739322616846,0.3793,96142.0,96141.0,0.006]
[1739322617950,0.39268495,96142.0,96141.0,0.006]
[1739322624449,0.35968495,96142.0,96141.0,0.006]
[1739322627357,0.3463,96142.0,96141.0,0.006]
[1739322627654,0.3463,96142.0,96141.0,0.0377]
[1739322629461,0.3463,96142.0,96141.0,0.006]
[1739322633261,0.2080644,96130.0,96125.0,0.0623]
[1739322633449,0.3608,96126.0,96125.0,0.0623]
[1739322634653,0.3608,96126.0,96125.0,0.0693]
[1739322635057,0.3608,96126.0,96125.0,0.0623]